fUST/lending_fUST_20250908
["ID","MTS","AMOUNT","RATE_DAILY","PERIOD"]
[384319583,1757334658523,-505.82,0.00015068,2]
[384319584,1757334658533,-480.0,0.00015068,2]
[384319585,1757334658542,-480.0,0.00015068,2]
[384319586,1757334658552,-480.0,0.00015068,2]
[384319587,1757334658561,-829.34,0.00015068,2]
[384319588,1757334658571,-480.0,0.00015068,2]
[384319589,1757334658581,-480.0,0.00015068,2]
[384319590,1757334658591,-480.0,0.00015068,2]
[384319591,1757334658601,-526.78,0.00015068,2]
[384319592,1757334658610,-480.0,0.00015068,2]
[384319593,1757334658619,-480.0,0.00015068,2]
[384319594,1757334658629,-480.0,0.00015068,2]
[384319595,1757334658638,-480.0,0.00015068,2]
[384319596,1757334658647,-2998.58,0.00015068,2]
[384319597,1757334658657,-480.0,0.00015068,2]
[384319598,1757334658667,-480.0,0.00015068,2]
[384319599,1757334658676,-480.0,0.00015068,2]
[384319600,1757334658686,-480.0,0.00015068,2]
[384319601,1757334658695,-480.0,0.00015068,2]
[384319602,1757334658704,-480.0,0.00015068,2]
[384319603,1757334658714,-480.0,0.00015068,2]
[384319604,1757334658724,-480.0,0.00015068,2]
[384319605,1757334658734,-480.0,0.00015068,2]
[384319606,1757334658743,-480.0,0.00015068,2]
[384319607,1757334658752,-480.0,0.00015068,2]
[384319608,1757334658762,-480.0,0.00015068,2]
[384319609,1757334658771,-480.0,0.00015068,2]
[384319610,1757334658780,-480.0,0.00015068,2]
[384319611,1757334658789,-480.0,0.00015068,2]
[384319612,1757334658798,-480.0,0.00015068,2]
[384319613,1757334658808,-480.0,0.00015068,2]
[384319614,1757334658818,-592.06,0.00015068,2]
[384319615,1757334658827,-480.0,0.00015068,2]
[384319616,1757334658836,-480.0,0.00015068,2]
[384319617,1757334658846,-480.0,0.00015068,2]
[384319618,1757334658855,-2040.37,0.00015068,2]
[384319619,1757334658865,-480.0,0.00015068,2]
[384319620,1757334658875,-480.0,0.00015068,2]
[384319621,1757334658884,-480.0,0.00015068,2]
[384319622,1757334658894,-988.72,0.00015068,2]
[384319623,1757334658903,-1332.11,0.00015068,2]
[384319624,1757334658912,-480.0,0.00015068,2]
[384319625,1757334658922,-480.0,0.00015068,2]
[384319626,1757334658931,-480.0,0.00015068,2]
[384319627,1757334658940,-480.0,0.00015068,2]
[384319628,1757334658949,-480.0,0.00015068,2]
[384319629,1757334658959,-486.68,0.00015068,2]
[384319630,1757334658968,-480.0,0.00015068,2]
[384319631,1757334658978,-873.91,0.00015068,2]
[384319632,1757334658987,-1500.0,0.00015068,2]
[384319633,1757334658997,-1500.0,0.00015068,2]
[384319634,1757334659006,-1500.0,0.00015068,2]
[384319635,1757334659016,-1500.0,0.00015068,2]
[384319636,1757334659026,-1500.0,0.00015068,2]
[384319637,1757334659036,-1500.0,0.00015068,2]
[384319638,1757334659046,-1500.0,0.00015068,2]
[384319639,1757334659056,-334.401333,0.00015068,2]
[384319640,1757334659065,-151.0,0.0001519,2]
[384319641,1757334659075,-192.973392,0.0001519,2]
[384319642,1757334659084,-192.973392,0.0001519,2]
[384319643,1757334659094,-192.973392,0.0001519,2]
[384319644,1757334659103,-192.973392,0.0001519,2]
[384319645,1757334659113,-151.0,0.0001519,2]
[384319646,1757334659122,-158.968489,0.0001519,2]
[384319647,1757334659132,-158.968489,0.0001519,2]
[384319648,1757334659142,-158.968489,0.0001519,2]
[384319649,1757334659151,-158.968489,0.0001519,2]
[384319650,1757334659160,-3852.5495123,0.0001519,2]
[384319651,1757334659170,-151.0,0.000152,2]
[384319652,1757334659180,-1000.0,0.000153,2]
[384319653,1757334659189,-655.10760021,0.000153,2]
[384319654,1757334659199,-1000.0,0.000153,2]
[384319655,1757334659208,-229.49823432,0.000153,2]
[384319656,1757334659218,-1000.0,0.000153,2]
[384319657,1757334659227,-877.21709229,0.000153,2]
[384319658,1757334659236,-1000.0,0.000153,2]
[384319659,1757334659245,-1000.0,0.000153,2]
[384319660,1757334659254,-1000.0,0.000153,2]
[384319661,1757334659264,-1000.0,0.000153,2]
[384319662,1757334659273,-1000.0,0.000153,2]
[384319663,1757334659283,-431.7896741,0.00015313,2]
[384319664,1757334659291,-480.0,0.00015342,2]
[384319665,1757334659301,-577.98,0.00015342,2]
[384319666,1757334659310,-520.28,0.00015342,2]
[384319667,1757334659319,-308.74,0.00015342,2]
[384319668,1757334659328,-397.192639,0.00015342,2]
[384319669,1757334659336,-151.0,0.00015342,2]
[384319670,1757334659345,-397.192639,0.00015342,2]
[384319671,1757334659354,-397.192639,0.00015342,2]
[384319672,1757334659363,-151.0,0.00015342,2]
[384319673,1757334659372,-397.192639,0.00015342,2]
[384319674,1757334659381,-151.0,0.00015342,2]
[384319675,1757334659390,-151.0,0.00015342,2]
[384319676,1757334659400,-213.142329,0.00015342,2]
[384319677,1757334659409,-213.142329,0.00015342,2]
[384319678,1757334659418,-213.142329,0.00015342,2]
[384319679,1757334659427,-213.142329,0.00015342,2]
[384319680,1757334659436,-151.0,0.00015342,2]
[384319681,1757334659445,-480.0,0.00015342,2]
[384319682,1757334659455,-539.75,0.00015342,2]
[384319683,1757334659464,-196.7,0.00015342,2]
[384319684,1757334659473,-480.0,0.00015342,2]
[384319685,1757334659482,-480.0,0.00015342,2]
[384319686,1757334659492,-487.22,0.00015342,2]
[384319687,1757334659501,-161.14,0.00015342,2]
[384319688,1757334659510,-480.0,0.00015342,2]
[384319689,1757334659523,-480.0,0.00015342,2]
[384319690,1757334659532,-480.0,0.00015342,2]
[384319691,1757334659542,-480.0,0.00015342,2]
[384319692,1757334659552,-606.84,0.00015342,2]
[384319693,1757334659562,-821.44,0.00015342,2]
[384319694,1757334659571,-480.0,0.00015342,2]
[384319695,1757334659581,-480.0,0.00015342,2]
[384319696,1757334659591,-480.0,0.00015342,2]
[384319697,1757334659600,-505.82,0.00015342,2]
[384319698,1757334659609,-480.0,0.00015342,2]
[384319699,1757334659619,-480.0,0.00015342,2]
[384319700,1757334659628,-829.34,0.00015342,2]
[384319701,1757334659638,-480.0,0.00015342,2]
[384319702,1757334659647,-480.0,0.00015342,2]
[384319703,1757334659656,-480.0,0.00015342,2]
[384319704,1757334659665,-526.78,0.00015342,2]
[384319705,1757334659675,-442.94246413,0.00015342,2]
[384319706,1757334659685,-480.0,0.00015342,2]
[384319707,1757334659695,-480.0,0.00015342,2]
[384319708,1757334659704,-480.0,0.00015342,2]
[384319709,1757334659714,-2998.58,0.00015342,2]
[384319710,1757334659723,-177.48,0.00015342,2]
[384319711,1757334659733,-480.0,0.00015342,2]
[384319712,1757334659743,-480.0,0.00015342,2]
[384319713,1757334659754,-480.0,0.00015342,2]
[384319714,1757334659764,-151.0,0.00015342,2]
[384319715,1757334659774,-480.0,0.00015342,2]
[384319716,1757334659783,-480.0,0.00015342,2]
[384319717,1757334659793,-151.0,0.00015342,2]
[384319718,1757334659802,-578.597548,0.00015342,2]
[384319719,1757334659812,-151.0,0.00015342,2]
[384319720,1757334659821,-578.597548,0.00015342,2]
[384319721,1757334659830,-578.597548,0.00015342,2]
[384319722,1757334659839,-480.0,0.00015342,2]
[384319723,1757334659848,-578.597548,0.00015342,2]
[384319724,1757334659858,-644.077091,0.00015342,2]
[384319725,1757334659867,-644.077091,0.00015342,2]
[384319726,1757334659877,-480.0,0.00015342,2]
[384319727,1757334659886,-215.835968,0.00015342,2]
[384319728,1757334659896,-644.077091,0.00015342,2]
[384319729,1757334659906,-644.077091,0.00015342,2]
[384319730,1757334659916,-480.0,0.00015342,2]
[384319731,1757334659926,-480.0,0.00015342,2]
[384319732,1757334659938,-480.0,0.00015342,2]
[384319733,1757334659948,-480.0,0.00015342,2]
[384319734,1757334659958,-480.0,0.00015342,2]
[384319735,1757334659967,-480.0,0.00015342,2]
[384319736,1757334659977,-480.0,0.00015342,2]
[384319737,1757334659986,-480.0,0.00015342,2]
[384319738,1757334659995,-151.0,0.00015342,2]
[384319739,1757334660004,-151.0,0.00015342,2]
[384319740,1757334660014,-480.0,0.00015342,2]
[384319741,1757334660024,-151.0,0.00015342,2]
[384319742,1757334660034,-592.06,0.00015342,2]
[384319743,1757334660044,-480.0,0.00015342,2]
[384319744,1757334660054,-480.0,0.00015342,2]
[384319745,1757334660065,-480.0,0.00015342,2]
[384319746,1757334660075,-2040.37,0.00015342,2]
[384319747,1757334660084,-480.0,0.00015342,2]
[384319748,1757334660094,-480.0,0.00015342,2]
[384319749,1757334660104,-988.72,0.00015342,2]
[384319750,1757334660114,-1332.11,0.00015342,2]
[384319751,1757334660124,-480.0,0.00015342,2]
[384319752,1757334660134,-480.0,0.00015342,2]
[384319753,1757334660144,-480.0,0.00015342,2]
[384319754,1757334660154,-480.0,0.00015342,2]
[384319755,1757334660164,-480.0,0.00015342,2]
[384319756,1757334660174,-486.68,0.00015342,2]
[384319757,1757334660183,-480.0,0.00015342,2]
[384319758,1757334660193,-873.91,0.00015342,2]
[384319759,1757334660203,-151.0,0.000154,2]
[384319760,1757334660212,-160.59126259,0.00015404,2]
[384319761,1757334660222,-160.0,0.00015489,2]
[384319762,1757334660232,-500.0,0.00015516,2]
[384319763,1757334660241,-1500.0,0.00015516,2]
[384319764,1757334660251,-1000.0,0.00015548,2]
[384319765,1757334660261,-1086.54967329,0.00015548,2]
[384319766,1757334660271,-500.0,0.00015557,2]
[384319767,1757334660281,-500.64786122,0.00015557,2]
[384319768,1757334660290,-500.0,0.00015557,2]
[384319769,1757334660300,-1000.0,0.00015589,2]
[384319770,1757334660310,-1000.0,0.00015589,2]
[384319771,1757334660320,-403.79659271,0.00015589,2]
[384319772,1757334660330,-500.0,0.00015591,2]
[384319773,1757334660339,-160.02781913,0.00015591,2]
[384319774,1757334660349,-500.0,0.00015591,2]
[384319775,1757334660359,-500.0,0.00015595,2]
[384319776,1757334660369,-480.0,0.00015616,2]
[384319777,1757334660379,-480.0,0.00015616,2]
[384319778,1757334660389,-480.0,0.00015616,2]
[384319779,1757334660398,-480.0,0.00015616,2]
[384319780,1757334660408,-465.14,0.00015616,2]
[384319781,1757334660418,-389.36,0.00015616,2]
[384319782,1757334660428,-480.0,0.00015616,2]
[384319783,1757334660438,-821.44,0.00015616,2]
[384319784,1757334660448,-480.0,0.00015616,2]
[384319785,1757334660457,-480.0,0.00015616,2]
[384319786,1757334660467,-480.0,0.00015616,2]
[384319787,1757334660477,-505.82,0.00015616,2]
[384319788,1757334660487,-251.2,0.00015616,2]
[384319789,1757334660496,-829.34,0.00015616,2]
[384319790,1757334660506,-480.0,0.00015616,2]
[384319791,1757334660518,-480.0,0.00015616,2]
[384319792,1757334660529,-300.12,0.00015616,2]
[384319793,1757334660539,-526.78,0.00015616,2]
[384319794,1757334660549,-480.0,0.00015616,2]
[384319795,1757334660561,-480.0,0.00015616,2]
[384319796,1757334660571,-2998.58,0.00015616,2]
[384319797,1757334660581,-480.0,0.00015616,2]
[384319798,1757334660591,-215.44,0.00015616,2]
[384319799,1757334660602,-480.0,0.00015616,2]
[384319800,1757334660611,-480.0,0.00015616,2]
[384319801,1757334660622,-480.0,0.00015616,2]
[384319802,1757334660740,-480.0,0.00015616,2]
[384319803,1757334660751,-480.0,0.00015616,2]
[384319804,1757334660761,-480.0,0.00015616,2]
[384319805,1757334660771,-480.0,0.00015616,2]
[384319806,1757334660782,-480.0,0.00015616,2]
[384319807,1757334660791,-480.0,0.00015616,2]
[384319808,1757334660801,-480.0,0.00015616,2]
[384319809,1757334660811,-429.78,0.00015616,2]
[384319810,1757334660820,-480.0,0.00015616,2]
[384319811,1757334660830,-592.06,0.00015616,2]
[384319812,1757334660840,-480.0,0.00015616,2]
[384319813,1757334660850,-480.0,0.00015616,2]
[384319814,1757334660860,-480.0,0.00015616,2]
[384319815,1757334660869,-2040.37,0.00015616,2]
[384319816,1757334660880,-480.0,0.00015616,2]
[384319817,1757334660891,-480.0,0.00015616,2]
[384319818,1757334660901,-988.72,0.00015616,2]
[384319819,1757334660912,-1332.11,0.00015616,2]
[384319820,1757334660921,-480.0,0.00015616,2]
[384319821,1757334660931,-480.0,0.00015616,2]
[384319822,1757334660941,-480.0,0.00015616,2]
[384319823,1757334660951,-431.48,0.00015616,2]
[384319824,1757334660961,-480.0,0.00015616,2]
[384319825,1757334660971,-486.68,0.00015616,2]
[384319826,1757334660981,-480.0,0.00015616,2]
[384319827,1757334660991,-314.140138,0.00015616,2]
[384319828,1757334661002,-314.140138,0.00015616,2]
[384319829,1757334661013,-314.140138,0.00015616,2]
[384319830,1757334661023,-314.140138,0.00015616,2]
[384319831,1757334661032,-2000.0,0.00015616,2]
[384319832,1757334661042,-2000.0,0.00015616,2]
[384319833,1757334661051,-2000.0,0.00015616,2]
[384319834,1757334661061,-2000.0,0.00015616,2]
[384319835,1757334661071,-2000.0,0.00015616,2]
[384319836,1757334661081,-2000.0,0.00015616,2]
[384319837,1757334661090,-884.81466778,0.00015616,2]
[384319838,1757334661100,-555.22272137,0.00015656,2]
[384319839,1757334661109,-500.0,0.00015661,2]
[384319840,1757334661119,-1142.13988616,0.00015848,2]
[384319841,1757334661130,-1500.0,0.00015848,2]
[384319842,1757334661139,-787.39338666,0.00015848,2]
[384319843,1757334661149,-1500.0,0.00015848,2]
[384319844,1757334661159,-1500.0,0.00015848,2]
[384319845,1757334661170,-702.19643247,0.00015848,2]
[384319846,1757334661179,-1576.58405547,0.00015848,2]
[384319847,1757334661189,-372.86,0.0001589,2]
[384319848,1757334661198,-480.0,0.0001589,2]
[384319849,1757334661208,-240.88,0.0001589,2]
[384319850,1757334661218,-480.0,0.0001589,2]
[384319851,1757334661227,-821.44,0.0001589,2]
[384319852,1757334661237,-480.0,0.0001589,2]
[384319853,1757334661246,-480.0,0.0001589,2]
[384319854,1757334661256,-505.82,0.0001589,2]
[384319855,1757334661265,-480.0,0.0001589,2]
[384319856,1757334661275,-829.34,0.0001589,2]
[384319857,1757334661284,-480.0,0.0001589,2]
[384319858,1757334661293,-562.17668242,0.0001589,2]
[384319859,1757334661303,-526.78,0.0001589,2]
[384319860,1757334661313,-480.0,0.0001589,2]
[384319861,1757334661322,-311.62,0.0001589,2]
[384319862,1757334661331,-2998.58,0.0001589,2]
[384319863,1757334661341,-378.6,0.0001589,2]
[384319864,1757334661351,-203.76,0.0001589,2]
[384319865,1757334661360,-480.0,0.0001589,2]
[384319866,1757334661370,-480.0,0.0001589,2]
[384319867,1757334661380,-480.0,0.0001589,2]
[384319868,1757334661390,-480.0,0.0001589,2]
[384319869,1757334661400,-480.0,0.0001589,2]
[384319870,1757334661409,-480.0,0.0001589,2]
[384319871,1757334661419,-480.0,0.0001589,2]
[384319872,1757334661429,-480.0,0.0001589,2]
[384319873,1757334661439,-480.0,0.0001589,2]
[384319874,1757334661448,-480.0,0.0001589,2]
[384319875,1757334661457,-592.06,0.0001589,2]
[384319876,1757334661467,-480.0,0.0001589,2]
[384319877,1757334661477,-480.0,0.0001589,2]
[384319878,1757334661486,-2040.37,0.0001589,2]
[384319879,1757334661496,-480.0,0.0001589,2]
[384319880,1757334661505,-480.0,0.0001589,2]
[384319881,1757334661516,-988.72,0.0001589,2]
[384319882,1757334661528,-1332.11,0.0001589,2]
[384319883,1757334661538,-480.0,0.0001589,2]
[384319884,1757334661548,-480.0,0.0001589,2]
[384319885,1757334661557,-151.0,0.0001589,2]
[384319886,1757334661569,-480.0,0.0001589,2]
[384319887,1757334661579,-480.0,0.0001589,2]
[384319888,1757334661588,-486.68,0.0001589,2]
[384319889,1757334661599,-856.35842,0.0001589,2]
[384319890,1757334661609,-480.0,0.0001589,2]
[384319891,1757334661619,-856.35842,0.0001589,2]
[384319892,1757334661629,-856.35842,0.0001589,2]
[384319893,1757334661639,-856.35842,0.0001589,2]
[384319894,1757334661649,-260.0,0.00016037,2]
[384319895,1757334661658,-328.601437,0.00016081,2]
[384319896,1757334661668,-328.601437,0.00016081,2]
[384319897,1757334661678,-328.601437,0.00016081,2]
[384319898,1757334661687,-328.601437,0.00016081,2]
[384319899,1757334661697,-151.0,0.00016081,2]
[384319900,1757334661707,-151.0,0.00016081,2]
[384319901,1757334661717,-272.868647,0.00016081,2]
[384319902,1757334661727,-272.868647,0.00016081,2]
[384319903,1757334661737,-272.868647,0.00016081,2]
[384319904,1757334661747,-272.868647,0.00016081,2]
[384319905,1757334661757,-555.89759,0.00016081,2]
[384319906,1757334661767,-555.89759,0.00016081,2]
[384319907,1757334661776,-555.89759,0.00016081,2]
[384319908,1757334661786,-686.849625,0.00016081,2]
[384319909,1757334661796,-187.892045,0.00016081,2]
[384319910,1757334661806,-555.89759,0.00016081,2]
[384319911,1757334661816,-686.849625,0.00016081,2]
[384319912,1757334661827,-187.892045,0.00016081,2]
[384319913,1757334661838,-151.0,0.00016081,2]
[384319914,1757334661848,-187.892045,0.00016081,2]
[384319915,1757334661859,-686.849625,0.00016081,2]
[384319916,1757334661868,-151.0,0.00016081,2]
[384319917,1757334661879,-187.892045,0.00016081,2]
[384319918,1757334661889,-686.849625,0.00016081,2]
[384319919,1757334661899,-181.301176,0.00016081,2]
[384319920,1757334661908,-2549.112736,0.00016081,2]
[384319921,1757334661918,-181.301176,0.00016081,2]
[384319922,1757334661927,-2549.112736,0.00016081,2]
[384319923,1757334661937,-181.301176,0.00016081,2]
[384319924,1757334661946,-2549.112736,0.00016081,2]
[384319925,1757334661956,-181.301176,0.00016081,2]
[384319926,1757334661966,-2549.112736,0.00016081,2]
[384319927,1757334661975,-1500.0,0.00016096,2]
[384319928,1757334661985,-1000.0,0.00016105,2]
[384319929,1757334661994,-500.0,0.00016137,2]
[384319930,1757334662004,-1500.0,0.00016137,2]
[384319931,1757334662014,-1112.364251,0.00016143,2]
[384319932,1757334662023,-480.0,0.00016164,2]
[384319933,1757334662034,-539.49399553,0.00016164,2]
[384319934,1757334662044,-821.44,0.00016164,2]
[384319935,1757334662053,-480.0,0.00016164,2]
[384319936,1757334662063,-574.05216734,0.00016164,2]
[384319937,1757334662073,-505.82,0.00016164,2]
[384319938,1757334662082,-829.34,0.00016164,2]
[384319939,1757334662092,-480.0,0.00016164,2]
[384319940,1757334662101,-526.78,0.00016164,2]
[384319941,1757334662111,-480.0,0.00016164,2]
[384319942,1757334662120,-2998.58,0.00016164,2]
[384319943,1757334662131,-480.0,0.00016164,2]
[384319944,1757334662141,-480.0,0.00016164,2]
[384319945,1757334662150,-214.98,0.00016164,2]
[384319946,1757334662159,-480.0,0.00016164,2]
[384319947,1757334662170,-480.0,0.00016164,2]
[384319948,1757334662179,-480.0,0.00016164,2]
[384319949,1757334662189,-480.0,0.00016164,2]
[384319950,1757334662199,-480.0,0.00016164,2]
[384319951,1757334662208,-480.0,0.00016164,2]
[384319952,1757334662217,-592.06,0.00016164,2]
[384319953,1757334662227,-211.78,0.00016164,2]
[384319954,1757334662236,-480.0,0.00016164,2]
[384319955,1757334662245,-2040.37,0.00016164,2]
[384319956,1757334662255,-361.44,0.00016164,2]
[384319957,1757334662265,-480.0,0.00016164,2]
[384319958,1757334662275,-988.72,0.00016164,2]
[384319959,1757334662284,-1332.11,0.00016164,2]
[384319960,1757334662294,-480.0,0.00016164,2]
[384319961,1757334662304,-480.0,0.00016164,2]
[384319962,1757334662315,-480.0,0.00016164,2]
[384319963,1757334662326,-480.0,0.00016164,2]
[384319964,1757334662336,-486.68,0.00016164,2]
[384319965,1757334662345,-1500.0,0.00016164,2]
[384319966,1757334662355,-2500.0,0.00016164,2]
[384319967,1757334662365,-2500.0,0.00016164,2]
[384319968,1757334662374,-1502.18447306,0.00016164,2]
[384319969,1757334662384,-1500.0,0.00016164,2]
[384319970,1757334662393,-1500.0,0.00016164,2]
[384319971,1757334662403,-481.0,0.0001623,2]
[384319972,1757334662414,-587.0,0.0001623,2]
[384319973,1757334662423,-587.0,0.0001623,2]
[384319974,1757334662433,-587.0,0.0001623,2]
[384319975,1757334662442,-587.0,0.0001623,2]
[384319976,1757334662452,-2351.0,0.00016345,2]
[384319977,1757334662462,-864.0,0.00016348,2]
[384319978,1757334662472,-3877.6441,0.00016354,2]
[384319979,1757334662481,-500.0,0.00016396,2]
[384319980,1757334662491,-2000.0,0.00016396,2]
[384319981,1757334662501,-2000.0,0.00016396,2]
[384319982,1757334662510,-581.62,0.00016438,2]
[384319983,1757334662524,-151.0,0.00016438,2]
[384319984,1757334662534,-174.755393,0.00016438,2]
[384319985,1757334662544,-151.0,0.00016438,2]
[384319986,1757334662555,-174.755393,0.00016438,2]
[384319987,1757334662565,-174.755393,0.00016438,2]
[384319988,1757334662574,-174.755393,0.00016438,2]
[384319989,1757334662584,-821.44,0.00016438,2]
[384319990,1757334662594,-480.0,0.00016438,2]
[384319991,1757334662603,-505.82,0.00016438,2]
[384319992,1757334662613,-829.34,0.00016438,2]
[384319993,1757334662623,-480.0,0.00016438,2]
[384319994,1757334662632,-526.78,0.00016438,2]
[384319995,1757334662642,-230.18992454,0.00016438,2]
[384319996,1757334662651,-2998.58,0.00016438,2]
[384319997,1757334662661,-514.57,0.00016438,2]
[384319998,1757334662670,-480.0,0.00016438,2]
[384319999,1757334662680,-480.0,0.00016438,2]
[384320000,1757334662690,-405.01,0.00016438,2]
[384320001,1757334662699,-480.0,0.00016438,2]
[384320002,1757334662709,-480.0,0.00016438,2]
[384320003,1757334662719,-480.0,0.00016438,2]
[384320004,1757334662728,-592.06,0.00016438,2]
[384320005,1757334662738,-470.17,0.00016438,2]
[384320006,1757334662747,-2040.37,0.00016438,2]
[384320007,1757334662757,-470.17,0.00016438,2]
[384320008,1757334662766,-988.72,0.00016438,2]
[384320009,1757334662776,-1332.11,0.00016438,2]
[384320010,1757334662786,-555.02,0.00016438,2]
[384320011,1757334662795,-480.0,0.00016438,2]
[384320012,1757334662805,-480.0,0.00016438,2]
[384320013,1757334662815,-480.0,0.00016438,2]
[384320014,1757334662824,-486.68,0.00016438,2]
[384320015,1757334662834,-360.0,0.00016585,2]
[384320016,1757334662844,-2000.0,0.00016644,2]
[384320017,1757334662853,-303.03606722,0.00016653,2]
[384320018,1757334662863,-2000.0,0.00016685,2]
[384320019,1757334662872,-821.44,0.00016712,2]
[384320020,1757334662882,-480.0,0.00016712,2]
[384320021,1757334662891,-505.82,0.00016712,2]
[384320022,1757334662900,-829.34,0.00016712,2]
[384320023,1757334662910,-480.0,0.00016712,2]
[384320024,1757334662919,-526.78,0.00016712,2]
[384320025,1757334662929,-2998.58,0.00016712,2]
[384320026,1757334662938,-480.0,0.00016712,2]
[384320027,1757334662948,-480.0,0.00016712,2]
[384320028,1757334662959,-480.0,0.00016712,2]
[384320029,1757334662969,-480.0,0.00016712,2]
[384320030,1757334662979,-480.0,0.00016712,2]
[384320031,1757334662988,-592.06,0.00016712,2]
[384320032,1757334662998,-2040.37,0.00016712,2]
[384320033,1757334663007,-988.72,0.00016712,2]
[384320034,1757334663016,-1332.11,0.00016712,2]
[384320035,1757334663025,-480.0,0.00016712,2]
[384320036,1757334663035,-480.0,0.00016712,2]
[384320037,1757334663045,-480.0,0.00016712,2]
[384320038,1757334663054,-486.68,0.00016712,2]
[384320039,1757334663064,-3000.0,0.00016712,2]
[384320040,1757334663073,-2361.57435834,0.00016712,2]
[384320041,1757334663083,-13973.52437244,0.00016886,2]
[384320042,1757334663093,-951.49957122,0.00016944,2]
[384320043,1757334663102,-2500.0,0.00016944,2]
[384320044,1757334663111,-865.219349,0.00016946,2]
[384320045,1757334663120,-821.44,0.00016986,2]
[384320046,1757334663131,-480.0,0.00016986,2]
[384320047,1757334663141,-505.82,0.00016986,2]
[384320048,1757334663151,-829.34,0.00016986,2]
[384320049,1757334663161,-480.0,0.00016986,2]
[384320050,1757334663170,-526.78,0.00016986,2]
[384320051,1757334663180,-2998.58,0.00016986,2]
[384320052,1757334663190,-480.0,0.00016986,2]
[384320053,1757334663200,-480.0,0.00016986,2]
[384320054,1757334663210,-480.0,0.00016986,2]
[384320055,1757334663220,-480.0,0.00016986,2]
[384320056,1757334663229,-480.0,0.00016986,2]
[384320057,1757334663239,-592.06,0.00016986,2]
[384320058,1757334663249,-2040.37,0.00016986,2]
[384320059,1757334663259,-988.72,0.00016986,2]
[384320060,1757334663268,-1332.11,0.00016986,2]
[384320061,1757334663279,-480.0,0.00016986,2]
[384320062,1757334663289,-485.29,0.00016986,2]
[384320063,1757334663398,-480.0,0.00016986,2]
[384320064,1757334663408,-486.68,0.00016986,2]
[384320065,1757334663419,-460.0,0.00017133,2]
[384320066,1757334663429,-2500.0,0.00017192,2]
[384320067,1757334663438,-633.0,0.00017229,2]
[384320068,1757334663448,-2153.0,0.00017229,2]
[384320069,1757334663458,-409.0,0.00017229,2]
[384320070,1757334663469,-2500.0,0.00017233,2]
[384320071,1757334663479,-821.44,0.0001726,2]
[384320072,1757334663489,-480.0,0.0001726,2]
[384320073,1757334663498,-505.82,0.0001726,2]
[384320074,1757334663508,-829.34,0.0001726,2]
[384320075,1757334663523,-480.0,0.0001726,2]
[384320076,1757334663532,-526.78,0.0001726,2]
[384320077,1757334663543,-2998.58,0.0001726,2]
[384320078,1757334663552,-480.0,0.0001726,2]
[384320079,1757334663563,-480.0,0.0001726,2]
[384320080,1757334663572,-480.0,0.0001726,2]
[384320081,1757334663582,-276.22,0.0001726,2]
[384320082,1757334663591,-398.61,0.0001726,2]